bitfinex-derivatives/quotes_ETHF0:USTF0_20250427
["timestamp","ask_amount","ask_price","bid_price","bid_amount"]
[1745751917968,3.502,1808.7,1808.5,40.8]
[1745751918169,1.6991,1808.6,1808.4,3.3661]
[1745751918570,1.6991,1808.6,1808.4,44.1661]
[1745751918769,0.8312,1808.5,1808.4,44.1661]
[1745751919369,0.8312,1808.5,1808.4,3.3661]
[1745751920672,0.8312,1808.5,1808.4,2.5579]
[1745751922166,0.8312,1808.5,1808.4,6.2799]
[1745751924173,0.8312,1808.5,1808.4,2.5579]
[1745751924373,1.6991,1808.6,1808.4,2.5579]
[1745751924575,2.542,1808.6,1808.5,1.6827]
[1745751925174,2.542,1808.6,1808.3,3.2078]
[1745751925473,1.7055,1808.5,1808.3,4.9369]
[1745751925675,1.7055,1808.5,1808.4,1.7291]
[1745751925974,5.2075,1808.5,1808.4,1.7291]
[1745751927187,3.502,1808.5,1808.4,1.7291]
[1745751928177,3.502,1808.5,1808.4,5.4511]
[1745751931282,5.1811,1808.5,1808.4,5.4511]
[1745751933181,3.502,1808.5,1808.4,5.4511]
[1745751936990,3.502,1808.8,1808.4,14.4844]
[1745751937193,3.502,1808.8,1808.5,1.6282]
[1745751937378,3.502,1808.8,1808.6,0.8529]
[1745751937580,3.502,1808.8,1808.7,1.6282]
[1745751938083,5.1448,1808.8,1808.7,1.6282]
[1745751938585,5.1448,1808.8,1808.7,2.4537]
[1745751938882,5.1448,1808.8,1808.7,1.6282]
[1745751939187,8.8668,1808.8,1808.6,0.8529]
[1745751939387,2.5023,1808.7,1808.6,0.8529]
[1745751939582,2.5023,1808.7,1808.6,2.4811]
[1745751947387,5.7101,1808.7,1808.6,1.6282]
[1745751947593,5.7101,1808.7,1808.3,0.831]
[1745751947805,1.6722,1808.6,1808.3,3.3309]
[1745751947991,3.502,1808.5,1808.4,1.639]
[1745751949696,4.3223,1808.5,1808.4,1.639]
[1745751950096,4.3223,1808.5,1808.4,5.361]
[1745751950892,14.30137091,1808.5,1807.9,2.5221]
[1745751951196,3.2078,1808.2,1807.9,2.5221]
[1745751951499,5.9976,1808.1,1808.0,1.6971]
[1745751952598,6.8532,1808.1,1808.0,1.6971]
[1745751954196,6.8532,1808.1,1807.6,40.8]
[1745751954396,4.8708,1808.0,1807.7,1.687]
[1745751954588,1.663,1807.9,1807.7,1.687]
[1745751954785,3.502,1807.8,1807.7,1.687]
[1745751955192,3.502,1807.8,1807.7,5.409]
[1745751956402,3.2078,1808.2,1807.7,10.409]
[1745751956601,3.502,1808.1,1807.8,2.4723]
[1745751956900,3.502,1808.1,1807.9,1.6727]
[1745751957102,3.502,1808.1,1808.0,0.8048]
[1745751957303,3.502,1808.1,1808.0,1.6044]
[1745751957602,3.502,1808.1,1808.0,3.2771]
[1745751958104,3.502,1808.1,1808.0,6.9991]
[1745751962509,3.2078,1808.2,1808.0,6.9991]
[1745751962708,3.2078,1808.2,1808.1,1.6146]
[1745751962907,6.7098,1808.2,1808.1,1.6146]
[1745751963598,3.502,1808.2,1808.1,1.6146]
[1745751966712,3.502,1808.3,1808.1,4.8224]
[1745751966911,3.502,1808.3,1808.2,1.6059]
[1745751967211,3.2078,1808.6,1808.2,6.1523]
[1745751967408,3.502,1808.5,1808.3,0.8037]
[1745751967609,3.502,1808.5,1808.3,2.4338]
[1745751968212,3.502,1808.5,1808.4,1.6301]
[1745751968607,5.6724,1808.8,1808.4,4.8379]
[1745751968815,3.502,1808.7,1808.5,0.8425]
[1745751969006,3.502,1808.7,1808.5,2.4726]
[1745751969306,3.502,1808.7,1808.5,6.1946]
[1745751969503,5.6724,1808.8,1808.6,1.6301]
[1745751969712,3.502,1808.7,1808.6,1.6301]
[1745751970315,5.1792,1808.7,1808.6,1.6301]
[1745751971922,5.9854,1808.7,1808.6,1.6301]
[1745751972222,5.9854,1808.7,1808.5,4.5645]
[1745751972423,2.4246,1808.6,1808.5,3.722]
[1745751972816,10.6324,1808.6,1808.5,3.722]
[1745751973122,5.6324,1808.6,1808.3,0.8037]
[1745751973324,1.5668,1808.5,1808.4,1.677]
[1745751974216,1.5668,1808.5,1808.4,5.399]
[1745751975223,4.0656,1808.6,1808.4,1.677]
[1745751975424,4.0656,1808.6,1808.5,1.6488]
[1745751976019,5.6429,1808.6,1808.5,1.6488]
[1745751977617,2.4351,1808.6,1808.5,1.6488]
[1745751979126,6.7098,1808.7,1808.5,5.3708]
[1745751979329,6.7098,1808.7,1808.6,1.5988]
[1745751979627,6.7098,1808.7,1808.6,3.2224]
[1745751984728,3.502,1808.7,1808.6,3.2224]
[1745751984929,3.2078,1808.9,1808.6,3.2224]
[1745751985228,3.502,1808.8,1808.7,1.6058]
[1745751986127,3.502,1808.8,1808.7,5.3278]
[1745751987232,3.2078,1808.9,1808.7,5.3278]
[1745751987436,3.2078,1808.9,1808.8,2.5208]
[1745751987733,3.501,1808.9,1808.8,2.5208]
[1745751988035,3.2078,1809.2,1808.8,48.3208]
[1745751988227,3.501,1809.1,1808.9,5.6847]
[1745751988534,3.501,1809.1,1809.0,1.6695]
[1745751989224,3.501,1809.1,1809.0,5.3915]
[1745751989424,0.8409,1809.3,1809.0,5.3915]
[1745751989632,2.535,1809.4,1809.1,2.4485]
[1745751989835,3.501,1809.3,1809.2,2.4697]
[1745751990235,3.501,1809.3,1809.2,6.1917]
[1745751992436,3.501,1809.4,1809.2,6.1917]
[1745751992639,3.501,1809.4,1809.3,1.6619]
[1745751992939,3.2078,1809.6,1809.3,1.6619]
[1745751992940,3.501,1809.5,1809.3,1.6619]
[1745751993239,3.501,1809.5,1809.4,0.7885]
[1745751993842,3.501,1809.5,1809.4,2.4504]
[1745751994138,3.501,1809.5,1809.4,6.1724]
[1745752000450,5.6008,1809.7,1809.4,6.1724]
[1745752000451,3.5,1809.6,1809.4,6.1724]
[1745752000650,5.091,1809.6,1809.5,1.6236]
[1745752002145,5.091,1809.6,1809.5,5.3456]
[1745752007455,5.091,1809.6,1809.5,3.722]
[1745752007652,10.091,1809.6,1809.5,3.47479781]
[1745752007864,10.18710526,1809.6,1809.5,3.06106315]
[1745752008156,13.90910526,1809.6,1809.0,9.1658]
[1745752008348,3.2078,1809.4,1809.0,9.1658]
[1745752008549,6.7852,1809.3,1809.0,9.1658]
[1745752008748,1.6004,1809.2,1809.0,5.958]
[1745752009758,1.6004,1809.2,1808.9,3.4043]
[1745752009960,1.6004,1809.2,1809.0,1.6021]
[1745752010257,3.5,1809.1,1809.0,1.6021]
[1745752012163,3.5,1809.1,1809.0,5.3241]
[1745752012458,3.5,1809.1,1809.0,3.722]
[1745752015062,3.5,1809.1,1809.0,5.3907]
[1745752016366,1.6004,1809.2,1809.0,5.3907]
[1745752016564,1.6004,1809.2,1809.1,1.6017]
[1745752016759,5.1004,1809.2,1809.1,1.6017]
[1745752016960,5.1004,1809.2,1809.0,3.722]
[1745752017263,1.6279,1809.1,1808.8,3.2078]
[1745752017455,0.8356,1809.0,1808.8,3.2078]
[1745752017755,5.9363,1808.9,1808.8,3.2078]
[1745752021267,5.9363,1808.9,1808.5,3.2078]
[1745752021567,1.5892,1808.8,1808.5,4.9028]
[1745752021754,1.5892,1808.8,1808.6,3.3207]
[1745752021957,1.5892,1808.8,1808.7,1.695]
[1745752023068,1.5892,1808.8,1808.7,5.417]
[1745752024169,1.5892,1808.8,1808.7,1.695]
[1745752024466,1.5892,1808.8,1808.5,3.2078]
[1745752024660,4.797,1808.8,1808.3,3.2078]
[1745752024967,3.2078,1808.6,1808.1,3.2078]
[1745752025267,4.3505,1808.5,1808.1,4.8032]
[1745752025468,5.9933,1808.5,1808.1,4.8032]
[1745752025768,2.4343,1808.4,1808.1,4.8032]
[1745752025968,1.6428,1808.3,1808.1,4.8032]
[1745752026165,3.501,1808.2,1808.1,4.8032]
[1745752026872,3.501,1808.2,1808.0,1.6241]
[1745752027069,2.4343,1808.1,1808.0,1.6241]
[1745752027262,2.4343,1808.1,1808.0,3.3306]
[1745752027972,2.4343,1808.1,1807.9,3.2078]
[1745752028171,1.6428,1808.0,1807.9,6.9298]
[1745752028371,3.501,1808.2,1807.9,6.9298]
[1745752028572,3.501,1808.2,1808.0,2.4629]
[1745752028867,3.501,1808.2,1808.1,1.6327]
[1745752029776,3.501,1808.2,1808.1,2.4979]
[1745752033574,3.502,1808.2,1808.1,2.4979]
[1745752060788,3.502,1808.2,1808.1,1.6327]
[1745752061090,5.175,1808.2,1808.1,1.6327]
[1745752065906,3.502,1808.2,1808.1,1.6327]
[1745752066201,3.502,1808.7,1808.1,9.8405]
[1745752066504,3.502,1808.7,1808.4,3.2078]
[1745752066691,3.502,1808.7,1808.5,3.212]
[1745752066893,3.502,1808.7,1808.6,1.6061]
[1745752068103,62.8856,1808.9,1808.6,1.6061]
[1745752068305,3.502,1808.8,1808.6,1.6061]
[1745752069208,5.1563,1808.8,1808.6,1.6061]
[1745752071007,3.502,1808.8,1808.6,1.6061]
[1745752071803,63.7385,1808.9,1808.6,1.6061]
[1745752071999,3.502,1808.8,1808.6,1.6061]
[1745752073709,5.1979,1808.8,1808.6,1.6061]
[1745752077907,3.502,1808.8,1808.6,1.6061]
[1745752079311,3.502,1808.8,1808.6,4.8139]
[1745752079702,3.502,1808.8,1808.7,1.6016]
[1745752080110,3.502,1808.8,1808.7,5.3236]
[1745752081211,3.501,1808.8,1808.7,5.3236]
[1745752090210,62.045,1808.9,1808.7,5.3236]
[1745752090512,62.045,1808.9,1808.8,3.2017]
[1745752090714,65.546,1808.9,1808.8,44.0017]
[1745752091118,65.546,1808.9,1808.8,47.7237]
[1745752091823,3.501,1808.9,1808.8,47.7237]
[1745752092220,4.8583,1809.0,1808.8,44.522]
[1745752092421,5.1515,1808.9,1808.8,3.722]
[1745752093218,5.1515,1808.9,1808.6,3.2078]
[1745752093423,3.3577,1808.8,1808.6,3.2078]
[1745752093721,1.67,1808.7,1808.6,4.7709]
[1745752094015,1.67,1808.7,1808.4,3.2078]
[1745752094213,3.501,1808.6,1808.4,3.2078]
[1745752094412,2.5095,1808.5,1808.2,3.2078]
[1745752094613,2.5182,1808.4,1808.0,3.2078]
[1745752094813,5.171,1808.3,1808.0,4.7709]
[1745752095015,5.171,1808.3,1808.1,1.5631]
[1745752097923,2.5118,1808.2,1808.0,6.9298]
[1745752098125,1.6975,1808.1,1808.0,3.2078]
[1745752098423,2.5579,1808.1,1808.0,3.2078]
[1745752099219,2.5579,1808.1,1808.0,6.9298]
[1745752099419,2.5579,1808.1,1808.0,8.5238]
[1745752101425,2.5579,1808.1,1808.0,3.722]
[1745752103713,2.5579,1808.1,1808.0,5.291]
[1745752111026,7.5579,1808.1,1808.0,3.722]
[1745752111230,7.5579,1808.1,1807.6,3.2655]
[1745752111529,5.1686,1808.0,1807.7,1.6733]
[1745752111726,1.6666,1807.9,1807.7,1.6733]
[1745752112227,1.6666,1807.9,1807.7,5.3953]
[1745752112630,1.6666,1807.9,1807.8,1.6733]
[1745752113131,1.6666,1807.9,1807.8,5.3953]
[1745752115726,3.502,1808.0,1807.8,5.3953]
[1745752116024,3.502,1808.0,1807.9,1.6843]
[1745752117034,5.0745,1808.0,1807.9,1.6843]
[1745752117335,5.0745,1808.0,1807.9,5.4063]
[1745752119129,8.2823,1808.0,1807.6,1.5922]
[1745752119428,2.3609,1807.9,1807.6,1.5922]
[1745752119735,1.5794,1807.8,1807.6,1.5922]
[1745752119936,3.502,1807.7,1807.6,1.5922]
[1745752122339,3.502,1807.7,1807.6,3.1772]
[1745752123639,3.502,1807.7,1807.5,6.9298]
[1745752123839,1.684,1807.6,1807.5,6.9298]
[1745752124141,2.5462,1807.6,1807.5,6.9298]
[1745752125135,3.3831,1807.6,1807.5,6.9298]
[1745752129139,3.3831,1807.6,1807.5,3.2078]
[1745752130141,2.5462,1807.6,1807.5,3.2078]
[1745752131244,2.5462,1807.6,1807.5,6.9298]
[1745752131747,2.5462,1807.6,1807.5,3.722]
[1745752132945,2.5462,1807.6,1807.5,5.3486]
[1745752133747,2.5462,1807.6,1807.5,3.722]
[1745752137741,2.5462,1807.6,1807.5,6.9891]
[1745752138646,2.5462,1807.6,1807.5,6.1348]
[1745752140148,2.5462,1807.6,1807.5,2.4128]
[1745752140536,2.5462,1807.6,1807.4,3.2078]
[1745752140749,2.5229,1807.5,1807.4,3.2078]
[1745752141349,10.7307,1807.5,1806.8,3.23369]
[1745752141540,3.2078,1807.3,1806.9,1.5605]
[1745752141740,2.5229,1807.2,1806.9,1.5605]
[1745752141946,5.1819,1807.1,1806.9,1.5605]
[1745752142149,5.1819,1807.1,1806.9,5.2825]
[1745752142347,3.508,1807.1,1806.9,5.2825]
[1745752142548,3.508,1807.1,1807.0,1.7004]
[1745752144048,5.1819,1807.1,1807.0,1.7004]
[1745752144249,5.1819,1807.1,1807.0,5.4224]
[1745752145552,5.1819,1807.1,1807.0,3.722]
[1745752146350,3.508,1807.1,1807.0,3.722]
[1745752146653,5.0973,1807.1,1807.0,3.722]
[1745752151355,3.508,1807.1,1807.0,3.722]
[1745752159260,3.508,1807.1,1807.0,11.9298]
[1745752159963,3.2078,1807.5,1807.0,11.9298]
[1745752160160,3.508,1807.4,1807.1,3.3595]
[1745752160469,3.508,1807.4,1807.2,1.6664]
[1745752161156,3.508,1807.4,1807.2,5.3884]
[1745752161456,3.508,1807.4,1807.3,1.6664]
[1745752162153,3.508,1807.4,1807.3,5.3884]
[1745752163656,5.1915,1807.4,1807.3,5.3884]
[1745752163968,5.1915,1807.4,1807.3,3.722]
[1745752164167,5.1915,1807.4,1807.1,3.3434]
[1745752164168,6.8512,1807.4,1807.1,3.3434]
[1745752164367,1.6835,1807.3,1807.1,3.3434]
[1745752164565,1.6835,1807.3,1807.1,0.8162]
[1745752164969,4.8913,1807.3,1806.9,2.4787]
[1745752165170,4.8913,1807.3,1806.9,7.0313]
[1745752165371,1.6835,1807.2,1806.9,7.0313]
[1745752165577,3.508,1807.1,1807.0,1.6619]
[1745752166077,3.508,1807.1,1807.0,5.3839]
[1745752167167,6.7158,1807.1,1807.0,5.3839]
[1745752168873,3.508,1807.1,1807.0,5.3839]
[1745752169476,4.8916,1807.3,1807.0,5.3839]
[1745752169775,4.8916,1807.3,1807.1,1.7144]
[1745752169776,3.508,1807.2,1807.1,1.7144]
[1745752171279,5.2051,1807.2,1807.1,1.7144]
[1745752174781,3.508,1807.2,1807.1,1.7144]
[1745752176373,3.2078,1807.5,1807.1,1.7144]
[1745752176580,3.521,1807.2,1807.1,1.7144]
[1745752178587,3.521,1807.2,1807.0,3.722]
[1745752178878,3.3637,1807.1,1807.0,3.722]
[1745752179083,3.45969917,1807.1,1807.0,3.722]
[1745752179484,3.45487183,1807.1,1807.0,3.722]
[1745752180176,3.45487051,1807.1,1807.0,3.722]
[1745752181674,3.45486738,1807.1,1807.0,3.722]
[1745752182182,11.66266738,1807.1,1807.0,3.722]
[1745752182485,11.66266738,1807.1,1807.0,3.15910001]
[1745752182880,11.66266738,1807.1,1807.0,0.39131701]
[1745752183186,11.66266738,1807.1,1806.5,1.6278]
[1745752183384,3.2078,1806.9,1806.5,1.6278]
[1745752183684,6.0152,1806.8,1806.5,1.6278]
[1745752183884,1.7092,1806.7,1806.5,1.6278]
[1745752184279,1.7092,1806.7,1806.5,5.3498]
[1745752184476,4.306,1806.8,1806.5,5.3498]
[1745752184680,4.306,1806.8,1806.6,1.5778]
[1745752184886,6.0136,1806.8,1806.6,1.5778]
[1745752185087,1.7076,1806.7,1806.6,1.5778]
[1745752186989,1.7076,1806.7,1806.5,3.722]
[1745752187187,0.84,1806.6,1806.5,3.722]
[1745752187888,2.5372,1806.6,1806.5,3.722]
[1745752188892,1.6972,1806.6,1806.5,3.722]
[1745752189191,3.2078,1806.7,1806.5,5.338]
[1745752189394,3.2078,1806.7,1806.6,1.616]
[1745752189594,6.7298,1806.7,1806.6,1.616]
[1745752189986,6.7298,1806.7,1806.5,3.722]
[1745752190193,8.427,1806.7,1806.5,3.722]
[1745752190490,1.6972,1806.6,1806.5,5.338]
[1745752190691,6.7298,1806.7,1806.5,6.1467]
[1745752190990,8.3122,1806.7,1806.5,6.1467]
[1745752191294,1.5824,1806.6,1806.5,6.1467]
[1745752191693,6.7298,1806.7,1806.5,6.1467]
[1745752191902,6.7298,1806.7,1806.6,1.7237]
[1745752192387,8.3122,1806.7,1806.5,4.5307]
[1745752192590,1.5824,1806.6,1806.5,7.1186]
[1745752195100,6.7298,1806.7,1806.5,7.1186]
[1745752195298,6.7298,1806.7,1806.5,5.3949]
[1745752195498,1.7178,1806.6,1806.5,7.073]
[1745752196295,1.7178,1806.6,1806.5,6.2088]
[1745752196488,1.7178,1806.6,1806.5,3.722]
[1745752196692,1.8137678,1806.6,1806.5,3.722]
[1745752198897,1.7178,1806.6,1806.5,3.722]
[1745752200106,6.7298,1806.7,1806.5,3.722]
[1745752200400,6.7298,1806.7,1806.6,2.4483]
[1745752200903,8.4319,1806.7,1806.6,2.4483]
[1745752201103,8.4319,1806.7,1806.6,3.244]
[1745752202707,9.2754,1806.7,1806.6,3.244]
[1745752203805,9.2754,1806.7,1806.6,2.4483]
[1745752205799,8.4319,1806.7,1806.6,2.4483]
[1745752206006,6.7498,1806.7,1806.6,3.3141]
[1745752208408,6.7498,1806.7,1806.5,3.722]
[1745752208607,9.2851,1806.7,1806.5,3.722]
[1745752208806,9.2851,1806.7,1806.6,1.6716]
[1745752209009,6.84578687,1806.7,1806.6,3.3495]
[1745752209209,6.7498,1806.7,1806.6,3.3495]
[1745752210012,3.2078,1806.7,1806.6,3.3495]
[1745752210306,6.7498,1806.7,1806.6,3.3495]
[1745752210708,3.2078,1806.7,1806.6,3.3495]
[1745752211011,6.7498,1806.7,1806.6,3.3495]
[1745752211909,3.542,1806.7,1806.6,3.3495]
[1745752212612,62.118,1806.9,1806.6,3.3495]
[1745752212811,62.118,1806.9,1806.7,1.6096]
[1745752213004,3.542,1806.8,1806.7,1.6096]
[1745752213208,3.542,1806.8,1806.7,5.3316]
[1745752214822,62.118,1806.9,1806.7,5.3316]
[1745752215018,62.118,1806.9,1806.8,1.6207]
[1745752215217,65.66,1806.9,1806.8,1.6207]
[1745752216222,65.66,1806.9,1806.8,5.3427]
[1745752217219,3.542,1806.9,1806.8,5.3427]
[1745752226033,3.2078,1807.1,1806.8,5.3427]
[1745752226234,3.541,1807.0,1806.9,3.2852]
[1745752227031,3.541,1807.0,1806.9,44.0852]
[1745752227226,3.541,1807.0,1806.9,47.8072]
[1745752229637,3.541,1807.0,1806.9,7.0072]
[1745752233333,6.0267,1807.0,1806.9,7.0072]
[1745752233533,5.229,1807.0,1806.9,7.0072]
[1745752233931,3.541,1807.0,1806.9,7.0072]
[1745752241443,2.8767845,1807.0,1806.9,7.0072]
[1745752241739,3.528,1807.1,1806.9,7.0072]
[1745752241941,3.528,1807.1,1807.0,1.7193]
[1745752242141,3.528,1807.1,1807.0,5.4413]
[1745752242337,1.6493,1807.3,1807.0,46.2413]
[1745752242642,3.528,1807.2,1807.1,1.5812]
[1745752243139,5.2312,1807.3,1807.1,4.789]
[1745752245243,5.2312,1807.3,1807.2,1.5812]
[1745752246046,5.2312,1807.3,1807.1,3.2078]
[1745752246241,2.4064,1807.2,1807.1,3.2078]
[1745752246442,2.4064,1807.2,1807.1,4.7972]
[1745752247145,3.528,1807.3,1807.1,4.7972]
[1745752247537,3.528,1807.3,1807.2,1.5894]
[1745752248146,3.528,1807.3,1807.2,3.722]
[1745752248340,4.3645,1807.3,1807.2,3.722]
[1745752255146,3.528,1807.3,1807.2,3.722]
[1745752255348,3.528,1807.3,1807.2,7.086]
[1745752260348,62.126,1807.7,1807.2,7.086]
[1745752260349,3.528,1807.5,1807.2,7.086]
[1745752260554,3.528,1807.5,1807.3,4.9146]
[1745752260754,3.528,1807.7,1807.4,1.7045]
[1745752260958,3.528,1807.7,1807.5,0.811]
[1745752261263,3.528,1807.7,1807.5,1.6505]
[1745752261562,3.528,1807.7,1807.6,1.7045]
[1745752262767,3.517,1807.8,1807.6,1.7045]
[1745752269466,1.5616,1807.9,1807.6,1.7045]
[1745752269667,3.516,1807.8,1807.6,1.7045]
[1745752270863,3.516,1807.8,1807.6,4.9123]
[1745752271361,3.516,1807.8,1807.7,1.5843]
[1745752271562,3.516,1808.0,1807.7,1.5843]
[1745752271762,3.516,1808.0,1807.8,1.703]
[1745752271962,5.2065,1808.0,1807.9,1.5843]
[1745752272168,5.2065,1808.0,1807.9,5.3063]
[1745752293097,3.516,1808.0,1807.9,5.3063]
[1745752294394,2.85215363,1808.0,1807.9,5.3063]
[1745752297193,2.85215363,1808.0,1807.9,3.722]
[1745752297400,8.68285363,1808.0,1807.9,3.722]
[1745752298095,8.68285363,1808.0,1807.6,9.1658]
[1745752298288,2.4034,1807.9,1807.6,9.1658]
[1745752298487,1.606,1807.8,1807.6,9.1658]
[1745752298691,4.301,1807.7,1807.6,9.1658]
[1745752299190,9.301,1807.7,1807.4,3.2078]
[1745752299493,2.4034,1807.6,1807.4,3.2078]
[1745752299693,1.606,1807.5,1807.4,3.2078]
[1745752303201,1.606,1807.5,1807.4,6.9298]
[1745752305902,0.7974,1807.6,1807.4,6.9298]
[1745752306103,2.4382,1807.6,1807.5,3.3409]
[1745752306401,2.4382,1807.6,1807.5,2.5149]
[1745752306603,2.4382,1807.6,1807.4,6.9298]
[1745752306795,1.6258,1807.5,1807.4,6.9298]
[1745752307802,0.795,1807.7,1807.4,6.9298]
[1745752308102,3.506,1807.6,1807.5,1.6316]
[1745752308303,5.1318,1807.6,1807.5,3.3101]
[1745752309206,5.1318,1807.6,1807.5,7.0321]
[1745752309809,1.6258,1807.6,1807.5,7.0321]
[1745752310000,5.1318,1807.6,1807.5,7.0321]
[1745752310599,1.6258,1807.6,1807.5,7.0321]
[1745752310797,5.1318,1807.6,1807.5,7.0321]
[1745752311095,1.6258,1807.6,1807.5,7.0321]
[1745752311299,5.1318,1807.6,1807.5,7.0321]
[1745752311615,1.6258,1807.6,1807.5,7.0321]
[1745752311809,5.1318,1807.6,1807.5,7.0321]
[1745752313912,0.8307,1807.8,1807.5,7.0321]
[1745752314212,3.506,1807.7,1807.6,4.7689]
[1745752319018,5.2106,1807.7,1807.6,4.7689]
[1745752320416,5.2106,1807.7,1807.6,3.2078]
[1745752320618,6.0135,1807.7,1807.6,3.2078]
[1745752322719,6.0135,1807.7,1807.5,4.5745]
[1745752322921,1.7199,1807.6,1807.5,7.7823]
[1745752323818,6.7199,1807.6,1807.5,3.722]
[1745752324220,10.53797307,1807.6,1807.1,9.1658]
[1745752324422,5.7869,1807.5,1807.1,9.1658]
[1745752324719,5.1985,1807.4,1807.1,9.1658]
[1745752324909,1.6765,1807.3,1807.1,10.8313]
[1745752325112,1.6765,1807.3,1807.1,5.6701]
[1745752326922,1.6765,1807.3,1807.2,1.6655]
[1745752328123,1.6765,1807.3,1807.2,5.3875]
[1745752329415,1.6765,1807.3,1807.2,3.722]
[1745752330125,1.6765,1807.3,1807.2,5.2899]
[1745752332527,1.6765,1807.3,1807.2,3.722]
[1745752333225,1.6765,1807.3,1807.1,5.6278]
[1745752334723,1.6765,1807.3,1807.1,2.42]
[1745752334925,2.11564003,1807.3,1807.1,2.42]
[1745752335728,1.5753,1807.2,1807.1,2.42]
[1745752337627,3.523,1807.2,1807.1,2.42]
[1745752339729,4.9395,1807.5,1807.1,2.42]
[1745752339928,3.523,1807.3,1807.2,1.6828]
[1745752340124,3.523,1807.3,1807.2,5.4048]
[1745752340424,3.523,1807.4,1807.2,5.4048]
[1745752340629,3.523,1807.4,1807.3,2.5151]
[1745752341123,3.523,1807.4,1807.3,6.2371]
[1745752342628,3.2078,1807.5,1807.3,6.2371]
[1745752342820,3.523,1807.5,1807.4,2.5416]
[1745752343130,3.523,1807.5,1807.4,6.2636]
[1745752353231,3.2078,1807.9,1807.4,6.2636]
[1745752353436,3.522,1807.8,1807.5,1.7271]
[1745752354036,3.522,1807.8,1807.6,0.8086]
[1745752354227,3.522,1807.8,1807.7,2.591]
[1745752355133,3.522,1807.8,1807.7,6.313]
[1745752356237,3.522,1807.8,1807.7,2.591]
[1745752356434,5.949,1807.8,1807.7,2.591]
[1745752356834,5.949,1807.8,1807.7,0.8639]
[1745752357041,6.796,1807.8,1807.6,0.8086]
[1745752357238,1.5746,1807.7,1807.4,2.5719]
[1745752357431,1.5746,1807.7,1807.5,2.5372]
[1745752357930,1.5746,1807.7,1807.6,1.7196]
[1745752360838,4.3744,1807.8,1807.6,1.7196]
[1745752361038,3.522,1807.8,1807.7,0.7936]
[1745752361938,1.6245,1807.9,1807.7,0.7936]
[1745752362140,1.6245,1807.9,1807.8,2.4204]
[1745752362337,5.1355,1807.9,1807.8,2.4204]
[1745752362735,1.6245,1807.9,1807.8,2.4204]
[1745752363041,3.511,1807.9,1807.8,2.4204]
[1745752363242,3.511,1807.9,1807.8,6.1424]
[1745752368037,3.511,1807.9,1807.8,9.3502]
[1745752369245,3.511,1808.0,1807.8,9.3502]
[1745752369438,3.511,1808.0,1807.9,1.6566]
[1745752370134,3.511,1808.0,1807.9,5.3786]
[1745752371036,3.511,1808.1,1807.9,5.3786]
[1745752371236,3.511,1808.1,1808.0,5.666]
[1745752371536,3.511,1808.3,1808.0,5.666]
[1745752371744,3.511,1808.3,1808.1,2.5096]
[1745752371938,3.511,1808.3,1808.2,1.6516]
[1745752372243,3.511,1808.3,1808.2,46.1736]
[1745752380944,3.511,1808.3,1808.2,44.522]
[1745752383044,3.511,1808.3,1808.2,47.7298]
[1745752384844,3.511,1808.3,1808.2,49.3786]
[1745752385447,3.511,1808.3,1808.2,47.7298]
[1745752386839,3.511,1808.3,1808.2,44.522]
[1745752387046,3.511,1808.3,1808.2,47.7298]
[1745752387644,3.511,1808.3,1808.2,44.522]
[1745752387845,3.511,1808.3,1808.2,47.7298]
[1745752388948,3.511,1808.3,1808.2,44.522]
[1745752389146,3.511,1808.3,1808.2,47.7298]
[1745752393447,8.511,1808.3,1808.2,6.9298]
[1745752393741,8.511,1808.3,1808.2,3.722]
[1745752393937,11.81502569,1808.3,1808.2,3.722]
[1745752394135,15.53702569,1808.3,1807.7,3.9914]
[1745752394345,3.43772569,1808.2,1807.7,3.9914]
[1745752394540,1.6614,1808.1,1807.7,5.6262]
[1745752394747,3.504,1808.0,1807.7,5.6262]
[1745752394943,1.7058,1807.9,1807.7,5.6262]
[1745752395139,2.5318,1807.9,1807.7,9.3482]
[1745752395550,1.7058,1807.8,1807.7,9.3482]
[1745752398253,1.7058,1807.8,1807.7,7.7134]
[1745752398446,2.5253,1807.8,1807.7,7.7134]
[1745752398947,2.5253,1807.8,1807.7,9.2755]
[1745752402751,2.5253,1807.8,1807.7,3.722]
[1745752403045,7.5253,1807.8,1807.7,3.722]
[1745752403251,11.2473,1807.8,1807.5,3.2078]
[1745752403454,5.0652,1807.7,1807.5,3.2078]
[1745752403641,1.5612,1807.6,1807.2,1.6245]
[1745752403843,0.8606,1807.5,1807.2,1.6245]
[1745752404044,5.0858,1807.4,1807.2,1.6245]
[1745752404245,1.5818,1807.3,1807.2,1.6245]
[1745752405053,2.8098567,1807.3,1807.2,1.6245]
[1745752405355,2.3654,1807.3,1807.2,5.3465]
[1745752405554,2.3654,1807.3,1807.2,3.722]
[1745752406248,2.3654,1807.3,1807.0,3.2078]